bitfinex-derivatives/quotes_ETHF0:USTF0_20250210
["timestamp","ask_amount","ask_price","bid_price","bid_amount"]
[1739163735374,0.00570223,2628.8,2628.4,0.5873]
[1739163735677,0.00570223,2628.8,2628.2,3.2078]
[1739163735977,7.39039408,2628.7,2628.2,3.2078]
[1739163737778,10.48145135,2628.7,2627.8,1.1589]
[1739163737983,3.2078,2628.3,2627.7,3.2078]
[1739163738273,0.6077,2628.2,2627.7,3.2078]
[1739163738470,4.92412859,2628.2,2627.7,3.2078]
[1739163740075,4.92412859,2628.2,2627.4,6.1678]
[1739163740481,4.92412859,2628.2,2627.6,2.52525727]
[1739163740785,4.92412859,2628.2,2627.7,3.2078]
[1739163741383,3.2078,2628.6,2627.8,0.5853]
[1739163741581,3.8138,2628.6,2627.8,0.5853]
[1739163741782,4.33172672,2628.4,2627.9,40.8]
[1739163742085,3.8138,2628.6,2628.0,3.2078]
[1739163742384,0.606,2628.6,2628.0,3.7691]
[1739163742786,0.606,2628.6,2628.0,6.7291]
[1739163746089,3.2078,2629.0,2628.3,3.2078]
[1739163746284,3.2078,2629.0,2628.6,3.2078]
[1739163746485,3.2078,2629.0,2628.7,0.5995]
[1739163748083,0.7452007,2629.5,2628.7,0.5995]
[1739163748894,0.5539,2629.5,2628.7,6.5995]
[1739163749096,0.5539,2629.5,2629.0,3.2078]
[1739163749486,0.5539,2629.5,2629.0,3.8125]
[1739163750195,0.55960223,2629.5,2629.0,3.8125]
[1739163750987,0.00570223,2629.5,2629.0,3.8125]
[1739163752191,0.00570223,2629.5,2629.0,6.7725]
[1739163752391,0.00570223,2629.5,2629.3,3.2078]
[1739163752593,0.00570223,2629.5,2629.4,0.6137]
[1739163753799,0.577,2630.0,2629.4,0.6137]
[1739163754197,0.577,2630.0,2629.5,0.5642]
[1739163754997,0.58270223,2630.0,2629.5,0.5642]
[1739163755594,0.00570223,2630.0,2629.5,0.5642]
[1739163755796,0.00570223,2630.0,2629.6,3.2078]
[1739163765103,0.00570223,2630.0,2629.9,3.2078]
[1739163766411,0.00570223,2630.0,2629.8,1.86148678]
[1739163766912,0.00570223,2630.0,2629.6,6.1678]
[1739163767612,4.33577252,2629.9,2629.5,0.5642]
[1739163767911,4.33577252,2629.9,2629.5,3.772]
[1739163768613,9.4050593,2629.9,2629.4,0.6137]
[1739163768798,9.9777593,2629.9,2629.4,0.6137]
[1739163769004,8.11627252,2629.9,2629.4,0.6137]
[1739163770005,4.33577252,2629.9,2629.4,0.6137]
[1739163770307,0.00570223,2630.0,2629.5,2.46528678]
[1739163770503,0.00570223,2630.0,2629.5,0.6038]
[1739163770913,0.00570223,2630.0,2629.6,3.2078]
[1739163773211,0.00570223,2630.0,2629.8,1.86148678]
[1739163773511,0.00570223,2630.0,2629.6,3.2078]
[1739163774507,3.9560046,2629.9,2629.6,3.2078]
[1739163775212,3.9560046,2629.9,2629.4,2.47518678]
[1739163776611,0.18554586,2629.8,2629.4,2.47518678]
[1739163779717,0.00570223,2630.0,2629.7,5.06928678]
[1739163780024,0.00570223,2630.0,2629.8,0.5646]
[1739163780512,0.5845,2630.7,2629.9,0.582]
[1739163780706,3.2078,2630.9,2630.3,5.06928678]
[1739163780913,3.98257742,2630.8,2630.4,0.5531]
[1739163781226,1.7346,2631.1,2630.4,0.5531]
[1739163781227,4.15120769,2631.0,2630.4,0.5531]
[1739163781606,1.7346,2631.1,2630.4,0.5531]
[1739163781807,0.00380148,2631.0,2630.4,0.55880223]
[1739163782012,4.15500917,2631.0,2630.4,0.55880223]
[1739163782222,9.22429595,2631.0,2630.4,0.55880223]
[1739163783209,9.22429595,2631.0,2630.4,0.00570223]
[1739163783517,1.86148678,2630.6,2630.4,0.00570223]
[1739163783823,1.7344,2630.5,2630.4,0.00570223]
[1739163784119,6.01398853,2630.5,2630.4,0.00570223]
[1739163784311,4.86018853,2630.5,2630.4,0.00570223]
[1739163784508,0.5806,2630.5,2630.4,0.00570223]
[1739163785418,0.00257605,2630.5,2630.4,0.00570223]
[1739163785619,0.00257605,2630.5,2630.4,0.61310223]
[1739163786218,0.00257605,2630.5,2630.4,1.20250223]
[1739163787512,0.00257605,2630.5,2630.4,0.61310223]
[1739163787921,0.00257605,2630.5,2630.4,0.00570223]
[1739163788114,4.32029521,2630.5,2630.4,0.00570223]
[1739163788819,6.18178199,2630.5,2630.4,0.00570223]
[1739163789117,12.24619912,2630.5,2629.5,0.5894]
[1739163789321,5.06928678,2630.0,2629.2,3.2078]
[1739163789513,3.2078,2629.7,2629.2,3.2078]
[1739163790309,3.2078,2629.7,2629.2,3.21350223]
[1739163790920,3.2078,2629.7,2629.3,0.5931]
[1739163791319,0.5656,2629.8,2629.3,0.5931]
[1739163791623,4.9468,2630.0,2629.3,0.5931]
[1739163791624,3.2078,2630.0,2629.4,1.86148678]
[1739163791824,3.2078,2630.0,2629.6,1.86148678]
[1739163792012,4.17640575,2629.9,2629.6,1.86148678]
[1739163792216,1.93103997,2630.2,2629.6,1.86148678]
[1739163792819,1.739,2630.2,2629.6,1.86148678]
[1739163793025,4.01851917,2630.1,2629.6,1.86148678]
[1739163793229,4.01851917,2630.1,2629.5,0.6136]
[1739163794021,1.739,2630.2,2629.8,5.06928678]
[1739163794224,1.739,2630.2,2629.9,0.5648]
[1739163795229,0.19054625,2630.5,2630.0,1.86148678]
[1739163795523,0.00257605,2630.5,2630.2,1.86148678]
[1739163795724,0.00257605,2630.5,2630.4,1.86148678]
[1739163801932,1e-08,2630.5,2630.4,1.86148678]
[1739163802131,1e-08,2630.5,2630.4,3.72297356]
[1739163802630,1e-08,2630.5,2630.4,1.86148678]
[1739163802935,1e-08,2630.5,2630.2,8.02928678]
[1739163804736,1e-08,2630.5,2629.9,0.8085]
[1739163804737,3.20780001,2630.5,2629.9,0.8085]
[1739163804928,0.587,2630.4,2629.9,0.8085]
[1739163805731,0.587,2630.4,2629.9,2.66998678]
[1739163806131,0.587,2630.4,2630.2,1.86148678]
[1739163806830,0.587,2630.4,2630.2,2.44258678]
[1739163807432,0.18613512,2630.5,2630.2,2.44258678]
[1739163807637,0.5854,2630.4,2630.1,0.0366]
[1739163810741,0.5854,2630.4,2630.2,1.86148678]
[1739163812843,0.5854,2630.4,2630.1,0.0366]
[1739163818038,4.13034925,2630.3,2630.1,0.0366]
[1739163818239,4.72354925,2630.3,2630.1,0.0366]
[1739163818439,3.7968,2630.2,2630.1,0.0366]
[1739163818948,8.19839073,2630.2,2630.1,0.0366]
[1739163821348,3.7968,2630.2,2630.1,0.0366]
[1739163822841,7.90219925,2630.2,2630.1,0.0366]
[1739163823646,8.72690597,2630.2,2629.9,0.0656]
[1739163823842,1.86148678,2630.0,2629.9,0.0656]
[1739163824142,0.76037,2629.9,2629.8,0.1782]
[1739163824348,6.94659859,2629.9,2629.8,0.1782]
[1739163824552,16.94976843,2629.9,2629.2,3.21350223]
[1739163824852,3.2078,2629.6,2629.2,3.21350223]
[1739163825248,4.00316984,2629.5,2629.2,3.21350223]
[1739163825952,3.2078,2629.6,2629.2,3.21350223]
[1739163827361,4.352,2629.6,2629.2,3.21350223]
[1739163827551,4.39971868,2629.5,2629.2,3.21350223]
[1739163827956,0.5579,2629.4,2629.2,3.21350223]
[1739163828656,0.5579,2629.4,2629.2,0.00570223]
[1739163829660,0.7492089,2629.4,2629.2,0.00570223]
[1739163831961,3.2078,2629.3,2629.2,0.00570223]
[1739163832358,7.18209817,2629.3,2629.2,0.00570223]
[1739163832558,7.18209817,2629.3,2629.1,0.1782]
[1739163832559,16.09609817,2629.3,2628.3,1.86148678]
[1739163832758,16.09609817,2629.3,2628.4,0.608]
[1739163832759,5.06928678,2629.0,2628.4,0.608]
[1739163832957,1.24770215,2628.9,2628.4,0.608]
[1739163833169,5.74319817,2628.9,2628.4,0.608]
[1739163833459,3.2078,2628.7,2628.4,0.608]
[1739163833665,3.2078,2628.7,2628.4,0.61370223]
[1739163834163,4.19712839,2628.6,2628.4,0.61370223]
[1739163834757,3.2078,2628.7,2628.4,0.61370223]
[1739163835062,0.18976865,2628.5,2628.4,0.00570223]
[1739163836466,6.08998919,2628.5,2627.9,3.2078]
[1739163836661,0.5536,2628.4,2627.9,3.2078]
[1739163836967,3.2078,2628.2,2627.8,0.5806]
[1739163837360,3.2078,2627.9,2627.8,0.5806]
[1739163837567,3.2078,2627.9,2627.6,0.6068]
[1739163837771,3.2078,2627.9,2627.6,0.61250223]
[1739163840366,3.2078,2627.9,2627.6,0.00570223]
[1739163840673,4.76712159,2627.8,2627.6,0.00570223]
[1739163842170,4.17102159,2627.8,2627.6,0.00570223]
[1739163845173,0.18801885,2627.7,2627.6,0.00570223]
[1739163847262,4.31101542,2627.7,2627.6,0.00570223]
[1739163847464,6.1725022,2627.7,2627.6,0.00570223]
[1739163847871,10.8255022,2627.7,2627.6,0.00570223]
[1739163848169,11.5865222,2627.7,2627.0,0.5816]
[1739163848376,3.2078,2627.3,2627.0,0.5816]
[1739163848675,1.86148678,2627.1,2627.0,0.5816]
[1739163848868,1.86148678,2627.1,2626.5,0.5713]
[1739163849170,1.86148678,2626.8,2626.5,0.00570223]
[1739163849372,0.5608,2626.7,2626.5,0.00570223]
[1739163849671,4.88309257,2626.7,2626.5,0.00570223]
[1739163850175,4.32229257,2626.7,2626.5,0.00570223]
[1739163850768,3.2078,2626.9,2626.5,0.00570223]
[1739163850970,2.914,2627.1,2626.5,0.00570223]
[1739163851170,2.914,2627.1,2626.5,1.86718901]
[1739163851373,4.32748301,2627.0,2626.5,1.86718901]
[1739163851871,4.9478,2627.2,2626.5,1.86718901]
[1739163852081,4.9478,2627.2,2626.7,1.86148678]
[1739163852277,4.9478,2627.2,2626.8,0.5852]
[1739163852576,4.9478,2627.2,2626.9,0.5563]
[1739163856676,0.19115193,2627.0,2626.9,0.5563]
[1739163859487,3.2078,2627.5,2626.9,1.1253]
[1739163859676,3.2078,2627.5,2627.1,1.86148678]
[1739163860184,3.2078,2627.5,2626.9,2.98678678]
[1739163860779,3.2078,2627.5,2627.1,5.06928678]
[1739163861182,3.2078,2627.5,2627.3,1.86148678]
[1739163861578,3.2078,2627.5,2627.4,0.6022]
[1739163863677,3.20511368,2627.5,2627.4,0.6022]
[1739163864280,3.20511368,2627.5,2627.1,3.2078]
[1739163864478,3.20511368,2627.5,2626.8,1.86148678]
[1739163864688,3.20511368,2627.5,2623.2,56.1747491]
[1739163864689,3.2078,2626.3,2625.2,1.61698415]
[1739163864982,0.1881964,2627.0,2624.0,3.2078]
[1739163864983,5.06928678,2625.3,2624.0,3.2078]
[1739163865184,1.86148678,2625.6,2624.1,40.8]
[1739163865185,3.2078,2624.9,2624.1,40.8]
[1739163865884,3.2078,2624.9,2624.2,0.00571363]
[1739163865885,0.00571363,2624.8,2624.2,0.00571363]
[1739163866985,0.19470973,2624.8,2624.2,0.00571363]
[1739163868579,5.50816034,2624.6,2624.2,0.00571363]
[1739163871184,0.19470973,2624.8,2624.3,2.30036034]
[1739163871379,0.30120712,2624.6,2624.3,2.30036034]
[1739163871686,0.00571363,2624.8,2624.5,3.2078]
[1739163871885,0.00571363,2624.8,2624.6,2.30036034]
[1739163872185,3.2078,2625.3,2624.6,2.30036034]
[1739163872186,3.2078,2625.3,2624.6,2.91296034]
[1739163872378,0.1879414,2625.1,2624.8,40.8]
[1739163872583,3.2078,2625.3,2624.8,40.8]
[1739163873283,3.21351363,2625.3,2624.8,40.8]
[1739163873484,3.21351363,2625.3,2624.8,44.0078]
[1739163875185,3.21351363,2625.3,2624.8,40.8]
[1739163879481,3.2078,2625.0,2624.4,0.5697]
[1739163880389,0.18763884,2624.9,2624.4,0.5697]
[1739163880584,0.18763884,2624.9,2624.4,41.3697]
[1739163880788,3.21351363,2625.3,2624.4,44.5775]
[1739163880996,3.21351363,2625.3,2624.4,41.3697]
[1739163881793,0.19045876,2625.0,2624.5,3.2078]
[1739163883685,3.39825876,2625.0,2624.4,41.3697]
[1739163883889,3.39825876,2625.0,2624.4,0.5697]
[1739163888592,3.2078,2624.7,2624.2,0.00571363]
[1739163889292,0.5869,2624.9,2624.2,0.00571363]
[1739163889492,0.5869,2624.9,2624.3,3.2078]
[1739163890189,0.5869,2624.9,2624.3,5.50816034]
[1739163890391,3.39825876,2625.0,2624.3,5.50816034]
[1739163890786,3.39825876,2625.0,2624.3,2.30036034]
[1739163890993,3.39825876,2625.0,2624.4,3.2078]
[1739163891598,3.2078,2625.4,2624.7,3.2078]
[1739163891795,3.2078,2625.4,2624.8,0.5897]
[1739163894491,3.2078,2625.4,2624.9,40.8]
[1739163897999,3.2078,2625.4,2625.0,5.07594112]
[1739163899399,0.6132,2625.6,2625.0,5.07594112]
[1739163899603,3.39831934,2625.8,2625.0,5.07594112]
[1739163900106,3.39831934,2625.8,2625.1,40.8]
[1739163901105,3.39831934,2625.8,2625.2,2.46944112]
[1739163902200,3.39831934,2625.8,2625.2,8.46944112]
[1739163902802,3.39831934,2625.8,2625.2,1.86814112]
[1739163903003,3.39831934,2625.8,2624.1,1.90508]
[1739163903004,9.28426757,2625.3,2624.2,0.00571363]
[1739163903206,3.2078,2625.0,2624.2,0.57381363]
[1739163903601,4.40859612,2624.9,2624.2,0.57381363]
[1739163903802,3.2078,2625.0,2624.4,1.86814112]
[1739163904209,3.2078,2625.0,2624.2,0.57381363]
[1739163904709,4.42002688,2624.9,2624.2,0.57381363]
[1739163905212,3.2078,2624.7,2624.2,0.57381363]
[1739163905711,3.2078,2624.4,2624.2,0.00571363]
[1739163908010,3.7867,2624.4,2624.2,0.00571363]
[1739163908209,4.3762,2624.4,2624.2,0.00571363]
[1739163910617,3.7867,2624.4,2624.2,0.00571363]
[1739163911313,0.80459223,2624.5,2624.2,0.00571363]
[1739163911514,3.2078,2624.4,2624.2,0.00571363]
[1739163912212,0.80459223,2624.5,2624.2,0.00571363]
[1739163912713,3.2078,2624.4,2624.2,0.00571363]
[1739163913118,4.20080053,2624.3,2624.2,0.00571363]
[1739163913312,5.35640053,2624.3,2624.2,0.00571363]
[1739163913516,13.10440053,2624.3,2623.1,3.2078]
[1739163913714,3.2078,2623.7,2623.1,3.2078]
[1739163914228,3.2078,2623.4,2623.0,40.8]
[1739163914520,3.2078,2623.4,2622.8,3.2078]
[1739163914722,5.50897525,2623.4,2622.9,0.00571363]
[1739163914921,5.50897525,2623.4,2622.9,40.80571363]
[1739163915119,5.50897525,2623.4,2622.9,0.00571363]
[1739163915319,8.42297525,2623.4,2622.9,0.00571363]
[1739163915524,2.49393158,2623.1,2622.8,3.2078]
[1739163916021,4.25604261,2623.0,2622.2,44.5967]
[1739163916723,3.2078,2622.8,2622.2,44.5967]
[1739163918133,3.9765126,2622.7,2622.2,44.0078]
[1739163918724,3.2078,2622.8,2622.2,44.0078]
[1739163920024,3.2078,2622.5,2622.2,40.8]
[1739163921424,4.07893257,2622.4,2622.2,40.8]
[1739163922328,4.07893257,2622.4,2621.9,0.597]
[1739163922534,1.1761,2622.3,2621.6,3.2078]
[1739163922832,4.27439137,2622.4,2621.6,3.7638]
[1739163922833,0.1954588,2622.4,2621.6,3.7638]
[1739163923333,0.1954588,2622.4,2621.8,2.30117525]
[1739163923531,0.1954588,2622.4,2621.9,0.5648]
[1739163924732,1.1593,2622.7,2621.9,0.5648]
[1739163924932,0.5978,2622.7,2622.1,2.30117525]
[1739163926230,3.2078,2622.5,2622.1,2.30117525]
[1739163926826,3.2078,2622.5,2621.9,3.7726]
[1739163928237,0.5978,2622.7,2622.1,1.87248798]
[1739163928433,3.7659,2622.8,2622.3,1.87248798]
[1739163929029,3.7659,2622.8,2622.3,2.46228798]
[1739163929438,0.5581,2622.8,2622.3,2.46228798]
[1739163931229,3.99925633,2623.1,2622.7,1.87248798]
[1739163931533,3.2078,2623.4,2622.9,1.87248798]
[1739163931733,3.2078,2623.4,2623.0,0.5728]
[1739163932633,3.2078,2623.4,2623.0,41.3728]
[1739163934934,5.08028798,2623.4,2623.0,41.3728]
[1739163935233,5.08028798,2623.4,2623.0,0.5728]
[1739163935435,3.2078,2623.4,2623.0,0.5728]
[1739163936538,4.3735,2623.7,2623.0,0.5728]
[1739163936932,4.3735,2623.7,2623.3,1.87248798]
[1739163936933,3.2078,2623.7,2623.3,1.87248798]
[1739163937136,3.2078,2623.7,2623.1,5.08028798]
[1739163937331,3.2078,2623.7,2623.2,0.0038416]
[1739163937838,0.18770537,2623.8,2623.3,1.87248798]
[1739163938037,3.2078,2624.0,2623.4,3.2078]
[1739163938537,3.2078,2624.0,2623.4,9.2078]
[1739163938730,3.2078,2624.0,2623.8,1.87248798]
[1739163938933,3.2078,2624.0,2623.9,0.5632]
[1739163939737,0.00571363,2624.2,2623.9,0.5632]
[1739163943342,0.00571363,2624.2,2624.0,40.8]
[1739163944540,0.00571363,2624.2,2623.9,0.5632]
[1739163945038,3.21351363,2624.2,2623.9,0.5632]
[1739163945540,3.21351363,2624.2,2623.7,0.00571363]
[1739163945541,3.9753201,2624.1,2623.7,0.00571363]
[1739163945737,0.598,2624.0,2623.7,0.00571363]
[1739163946243,3.2078,2623.9,2623.7,0.00571363]
[1739163946435,7.4577796,2623.9,2623.7,0.00571363]
[1739163946739,3.2078,2623.9,2623.7,0.00571363]
[1739163947143,3.21351363,2624.2,2623.8,1.87248798]
[1739163949038,3.21351363,2624.2,2623.7,0.00571363]
[1739163950738,3.2078,2624.0,2623.7,0.00571363]
[1739163952241,4.12687382,2623.9,2623.7,0.00571363]
[1739163952437,1.1763,2623.8,2623.7,0.00571363]
[1739163952641,1.7465,2623.8,2623.7,0.00571363]
[1739163952842,5.9155046,2623.8,2623.7,0.00571363]
[1739163955639,1.1492,2623.8,2623.7,0.00571363]
[1739163956238,3.2078,2624.0,2623.7,0.00571363]
[1739163957244,6.07106214,2623.9,2623.7,0.00571363]
[1739163959246,6.07106214,2623.9,2623.2,0.0038416]
[1739163959547,3.2078,2623.4,2623.2,0.0038416]
[1739163959748,1.2071,2623.3,2623.2,0.0038416]
[1739163960745,3.2078,2623.4,2623.2,0.0038416]
[1739163962148,4.41956104,2623.3,2623.2,0.0038416]
[1739163963646,3.2078,2623.4,2623.2,0.0038416]
[1739163966050,6.31180517,2623.8,2623.2,1.87632958]
[1739163966542,6.31180517,2623.8,2623.5,1.87248798]
[1739163966744,3.8198,2624.1,2623.5,1.87248798]
[1739163966947,3.8198,2624.1,2623.6,0.5983]
[1739163967148,4.3567537,2624.0,2623.6,0.5983]
[1739163967742,4.3567537,2624.0,2623.3,0.6032]
[1739163967743,3.2078,2623.8,2623.2,1.87632958]
[1739163967949,3.2078,2623.8,2623.2,2.47462958]
[1739163968143,4.182427,2623.7,2623.2,2.47462958]
[1739163968450,3.2078,2623.5,2623.2,0.0038416]
[1739163968646,0.612,2623.4,2623.2,0.0038416]
[1739163968851,5.01806969,2623.4,2623.2,0.0038416]
[1739163969253,1.87248798,2623.3,2623.2,0.0038416]
[1739163969551,1.87248798,2623.3,2622.4,3.2078]
[1739163969746,3.2078,2622.8,2622.4,3.2078]
[1739163970053,3.2078,2622.8,2622.4,44.0078]
[1739163970253,0.00571363,2622.9,2622.4,44.0078]
[1739163970552,3.98307575,2622.8,2622.4,44.0078]
[1739163970856,3.98307575,2622.8,2622.6,1.87248798]
[1739163972146,3.98307575,2622.8,2622.4,44.0078]
[1739163973946,0.00571363,2622.9,2622.4,44.0078]
[1739163974154,0.00571363,2622.9,2622.6,1.87248798]
[1739163974342,0.00571363,2622.9,2622.8,1.87248798]
[1739163974952,0.00571363,2622.9,2622.8,42.67248798]
[1739163975356,0.00571363,2622.9,2622.8,40.8]
[1739163976352,3.21351363,2622.9,2622.5,1.87248798]
[1739163976651,3.21351363,2622.9,2622.4,3.2078]
[1739163977257,3.21351363,2622.9,2622.3,0.6149]
[1739163977557,4.02928596,2622.8,2622.3,0.6149]
[1739163979251,0.18671289,2622.7,2622.3,0.6149]
[1739163979459,0.18671289,2622.7,2622.4,1.87248798]
[1739163979657,4.02928596,2622.8,2622.4,1.87248798]
[1739163979854,3.21351363,2622.9,2622.6,1.87248798]
[1739163980155,3.21351363,2622.9,2622.8,1.87248798]
[1739163980564,3.2078,2623.5,2622.8,8.46368798]
[1739163980753,3.2078,2623.8,2623.3,1.87248798]
[1739163980954,3.2078,2623.8,2623.4,41.3616]
[1739163981154,4.02726374,2623.7,2623.4,41.3616]
[1739163981364,4.02726374,2623.7,2623.4,0.5616]
[1739163981565,3.2078,2623.8,2623.4,0.5616]
[1739163981760,3.21351363,2623.8,2623.5,0.5745]
[1739163981961,6.20069056,2623.7,2623.0,3.2078]
[1739163982153,3.2078,2623.5,2623.1,0.5745]
[1739163982564,4.32820258,2623.4,2623.1,0.5745]
[1739163982860,4.88210258,2623.4,2623.1,0.5745]
[1739163983064,5.49400258,2623.4,2622.7,2.44698798]
[1739163983358,1.87248798,2623.3,2622.7,0.5745]
[1739163983558,3.2078,2622.9,2622.4,0.5901]
[1739163983864,6.11153195,2622.8,2622.4,0.5901]
[1739163984256,6.11153195,2622.8,2622.1,5.08028798]
[1739163984456,1.87248798,2622.7,2621.9,1.87248798]
[1739163984658,6.11153195,2622.8,2622.1,1.87248798]
[1739163984865,4.26640474,2622.7,2622.1,1.87248798]
[1739163985561,4.26640474,2622.7,2622.0,2.30402414]
[1739163985768,0.5643,2622.8,2622.3,2.30402414]
[1739163985957,0.5643,2622.8,2622.4,0.5901]
[1739163986153,4.1253871,2622.7,2622.4,0.5901]
[1739163987464,4.1253871,2622.7,2622.3,2.30402414]
[1739163987765,4.1253871,2622.7,2622.0,3.46422414]
[1739163988668,3.2078,2622.9,2622.3,2.30402414]
[1739163988864,3.2078,2622.9,2622.6,2.30973777]
[1739163989070,3.2078,2622.9,2622.7,0.5761]
[1739163989262,3.2078,2622.9,2622.7,1.1457]
[1739163991171,0.5844,2623.6,2622.8,3.2078]
[1739163991377,3.21351363,2623.8,2623.3,2.30402414]
[1739163991674,3.21351363,2623.8,2623.4,0.5622]
[1739163993671,3.21351363,2623.8,2623.4,1.1177]
[1739163993871,0.00571363,2623.8,2623.6,2.30402414]
[1739163998682,0.00571363,2623.8,2623.7,3.2078]
[1739163998883,0.00571363,2623.8,2623.6,2.30402414]
[1739163999083,4.3755,2624.8,2623.7,3.2078]
[1739163999289,4.3755,2624.8,2624.2,2.30402414]
[1739163999488,3.2078,2624.8,2624.2,2.30402414]
[1739163999689,0.5748,2625.0,2624.3,0.6134]
[1739164000089,3.2078,2624.8,2624.0,3.2078]
[1739164000292,3.2078,2624.8,2624.4,0.00571363]
[1739164000492,0.00571363,2624.9,2624.4,0.00571363]
[1739164000793,7.34398512,2624.8,2624.4,0.00571363]
[1739164007796,3.2078,2624.5,2624.4,0.00571363]
[1739164008097,7.29569623,2624.5,2623.6,5.51182414]
[1739164008296,3.2078,2624.2,2623.4,0.5759]
[1739164008699,4.08789623,2624.1,2623.4,0.5759]
[1739164009201,4.08789623,2624.1,2623.5,0.00571363]
[1739164009699,4.08789623,2624.1,2623.5,1.8758107]
[1739164010396,3.2078,2623.9,2623.5,1.8758107]
[1739164010604,3.2078,2623.9,2623.5,0.00571363]
[1739164010790,0.6015,2623.8,2623.5,0.00571363]
[1739164012195,3.2078,2623.9,2623.5,2.30762956]
[1739164012702,0.6015,2624.4,2623.8,2.30191593]
[1739164013000,0.6015,2624.4,2623.9,0.5792]
[1739164013193,0.6015,2624.4,2624.0,0.5756]
[1739164013497,6.1678,2624.5,2624.1,2.30191593]
[1739164013702,3.2078,2624.5,2624.1,2.30191593]
[1739164013998,0.5742,2624.8,2624.1,2.30191593]
[1739164014903,0.00571363,2624.9,2624.4,2.30191593]
[1739164015104,0.00571363,2624.9,2624.1,2.30191593]
[1739164015400,4.02129285,2624.8,2624.4,2.30191593]
[1739164015604,0.00571363,2624.9,2624.5,0.5991]
[1739164015801,0.00571363,2624.9,2624.6,0.5769]
[1739164020400,0.00571363,2624.9,2624.7,2.30191593]
[1739164020602,3.2078,2625.2,2624.7,2.90751593]
[1739164020905,3.2078,2625.2,2625.1,2.30191593]
[1739164023100,3.2078,2625.2,2625.0,0.5751]
[1739164023708,3.2078,2625.2,2624.9,0.00571363]
[1739164024108,5.94889601,2625.1,2624.9,0.00571363]
[1739164026804,5.94889601,2625.1,2624.2,2.89971593]
[1739164027005,3.2078,2624.8,2624.2,3.46531593]
[1739164027213,9.15669601,2625.1,2624.2,3.46531593]
[1739164027404,4.9695,2625.1,2624.2,3.46531593]
[1739164027609,4.9695,2625.1,2624.5,2.30191593]
[1739164028308,4.23172393,2625.0,2624.4,0.00571363]
[1739164029606,3.2078,2624.8,2624.4,0.00571363]
[1739164030204,3.97845046,2624.7,2624.4,0.00571363]
[1739164030602,0.577,2624.6,2624.4,0.00571363]
[1739164030807,0.5938,2624.5,2624.4,0.00571363]
[1739164031007,4.72702066,2624.5,2624.4,0.00571363]
[1739164031606,4.13322066,2624.5,2624.4,0.00571363]
[1739164031812,0.577,2624.9,2624.4,0.00571363]
[1739164032117,3.2078,2624.8,2624.4,0.00571363]
[1739164032513,4.2109106,2624.7,2624.4,0.00571363]
[1739164033406,3.2078,2624.5,2624.4,0.00571363]
[1739164033905,7.61577436,2624.5,2624.4,0.00571363]
[1739164039615,4.40797436,2624.5,2624.4,0.00571363]
[1739164039816,3.2078,2624.8,2624.4,0.00571363]
[1739164040621,3.99769734,2624.7,2624.4,0.00571363]
[1739164041119,3.2078,2624.5,2624.4,0.00571363]
[1739164041516,7.40013484,2624.5,2624.4,0.00571363]
[1739164045518,3.2078,2624.5,2624.4,0.00571363]
[1739164045725,3.39971183,2624.5,2624.4,0.00571363]
[1739164046025,7.56907725,2624.5,2624.4,0.00571363]
[1739164046817,3.39971183,2624.5,2624.4,0.00571363]
[1739164047217,3.2078,2624.8,2624.4,0.00571363]
[1739164047622,7.2409106,2624.8,2624.4,0.00571363]
[1739164050332,7.2409106,2624.8,2624.4,1.87534972]
[1739164050522,3.2078,2624.8,2624.4,1.87534972]
[1739164050724,3.2078,2624.8,2624.4,2.45874972]
[1739164051334,0.577,2624.9,2624.4,2.45874972]
[1739164051627,3.2078,2625.1,2624.4,2.45874972]
[1739164051927,3.2078,2625.1,2624.4,5.66654972]
[1739164052327,3.2078,2625.1,2624.5,40.8]
[1739164052522,3.96957,2625.1,2624.5,40.8]
[1739164052820,3.2078,2624.8,2624.4,0.00571363]
[1739164053030,1.124,2624.7,2624.4,0.00571363]
[1739164053227,5.93553887,2624.7,2624.4,0.00571363]
[1739164053630,1.124,2624.7,2624.4,0.00571363]
[1739164054232,0.562,2624.7,2624.4,0.00571363]
[1739164056123,3.2078,2624.5,2624.4,0.00571363]
[1739164056524,7.26808464,2624.5,2624.4,0.00571363]
[1739164057332,7.62549736,2624.5,2624.4,0.00571363]
[1739164057728,7.81961532,2624.5,2624.4,0.00571363]
[1739164058227,7.4622026,2624.5,2624.4,0.00571363]
[1739164059022,8.2241326,2624.5,2624.4,0.00571363]
[1739164059225,7.4622026,2624.5,2624.4,0.00571363]
[1739164059625,7.81961818,2624.5,2624.4,0.00571363]
[1739164061939,7.4622026,2624.5,2624.4,0.00571363]
[1739164064446,2.914,2624.7,2624.4,0.00571363]
[1739164066645,3.2078,2624.8,2624.4,0.00571363]
[1739164067037,3.2078,2624.8,2624.4,1.87534972]
[1739164067244,0.35733866,2625.0,2624.5,0.5658]
[1739164067445,0.35733866,2625.0,2624.6,2.47333609]
[1739164067641,3.8089,2625.1,2624.6,2.47333609]
[1739164068743,3.2078,2625.1,2624.8,1.86963609]
[1739164068946,3.2078,2625.1,2625.0,1.86963609]
[1739164070844,3.10380249,2625.3,2625.0,1.86963609]
[1739164071146,3.10380249,2625.3,2625.1,0.6093]
[1739164072548,0.18980249,2625.3,2625.1,0.6093]
[1739164076550,4.33921871,2625.2,2624.6,3.8115]
[1739164076743,3.2078,2625.0,2624.6,3.8115]
[1739164077242,4.40120834,2624.9,2624.6,3.2078]
[1739164078147,4.40120834,2624.9,2624.4,0.00571363]
[1739164078148,3.2078,2624.7,2624.4,0.00571363]
[1739164078953,0.6131,2624.6,2624.4,0.00571363]
[1739164080346,4.85859062,2624.5,2624.4,0.00571363]
[1739164082248,4.85859062,2624.5,2623.5,1.1673]
[1739164082249,19.23553062,2624.5,2623.5,1.1673]
[1739164082549,19.23553062,2624.5,2623.2,1.86963609]
[1739164082550,3.2078,2623.8,2623.2,1.86963609]
[1739164082739,1.1553,2623.7,2623.2,1.86963609]
[1739164082944,1.1553,2623.7,2622.8,1.7386]
[1739164082945,3.2078,2623.5,2622.9,1.86963609]
[1739164083449,3.2078,2623.5,2622.8,1.1673]
[1739164083450,3.2078,2623.2,2622.8,1.1673]
[1739164084048,4.88226725,2623.1,2622.4,3.2078]
[1739164084546,3.2078,2622.9,2622.4,40.8]
[1739164084949,4.37543561,2622.8,2622.4,40.8]
[1739164086056,4.37543561,2622.8,2622.4,41.397]